fUST/lending_fUST_20240226
["ID","MTS","AMOUNT","RATE_DAILY","PERIOD"]
[315199015,1708926642125,-500.0,0.00019452,2]
[315199016,1708926642134,-2437.93,0.00019452,2]
[315199017,1708926642144,-500.0,0.00019452,2]
[315199018,1708926642153,-500.0,0.00019452,2]
[315199019,1708926642163,-3068.37,0.00019452,2]
[315199020,1708926642172,-640.38620748,0.00019452,2]
[315199021,1708926642182,-500.0,0.00019452,2]
[315199022,1708926642191,-21911.07,0.00019452,2]
[315199023,1708926642200,-500.0,0.00019452,2]
[315199024,1708926642210,-587.29506689,0.00019452,2]
[315199025,1708926642220,-500.0,0.00019452,2]
[315199026,1708926642229,-474.48126572,0.00019452,2]
[315199027,1708926642238,-500.0,0.00019452,2]
[315199028,1708926642248,-500.0,0.00019452,2]
[315199029,1708926642257,-500.0,0.00019452,2]
[315199030,1708926642267,-500.0,0.00019452,2]
[315199031,1708926642276,-500.0,0.00019452,2]
[315199032,1708926642285,-500.0,0.00019452,2]
[315199033,1708926642295,-3344.76,0.00019452,2]
[315199034,1708926642304,-1217.01,0.00019452,2]
[315199035,1708926642312,-2173.34,0.00019452,2]
[315199036,1708926642321,-500.0,0.00019452,2]
[315199037,1708926642330,-500.0,0.00019452,2]
[315199038,1708926642339,-500.0,0.00019452,2]
[315199039,1708926642348,-1477.38,0.00019452,2]
[315199040,1708926642358,-500.0,0.00019452,2]
[315199041,1708926642367,-249.09722205,0.00019452,2]
[315199042,1708926642377,-7330.41372259,0.00019466,2]
[315199043,1708926642386,-7330.41372259,0.00019474,2]
[315199044,1708926642395,-182.85476532,0.00019479,2]
[315199045,1708926642403,-182.85476532,0.00019479,2]
[315199046,1708926642416,-7330.41372259,0.00019479,2]
[315199047,1708926642426,-182.85476532,0.000195,2]
[315199048,1708926642435,-153.0,0.000195,2]
[315199049,1708926642445,-153.0,0.000195,2]
[315199050,1708926642455,-153.0,0.000195,2]
[315199051,1708926642464,-153.0,0.000195,2]
[315199052,1708926642473,-153.0,0.000195,2]
[315199053,1708926642482,-153.0,0.000195,2]
[315199054,1708926642492,-153.0,0.000195,2]
[315199055,1708926642502,-153.0,0.000195,2]
[315199056,1708926642511,-200.5826354,0.000195,2]
[315199057,1708926642520,-153.0,0.000195,2]
[315199058,1708926642529,-153.0,0.000195,2]
[315199059,1708926642538,-200.5826354,0.000195,2]
[315199060,1708926642548,-153.0,0.000195,2]
[315199061,1708926642557,-153.0,0.000195,2]
[315199062,1708926642566,-200.5826354,0.000195,2]
[315199063,1708926642575,-3232.05010345,0.00019626,2]
[315199064,1708926642585,-166.666666,0.00019627,2]
[315199065,1708926642595,-5529.96122929,0.000197,2]
[315199066,1708926642605,-5529.96122929,0.000197,2]
[315199067,1708926642614,-5529.96122929,0.000197,2]
[315199068,1708926642624,-500.0,0.00019703,2]
[315199069,1708926642634,-5303.2156293,0.00019704,2]
[315199070,1708926642643,-500.0,0.00019724,2]
[315199071,1708926642653,-500.0,0.00019725,2]
[315199072,1708926642663,-500.0,0.00019725,2]
[315199073,1708926642672,-500.0,0.00019726,2]
[315199074,1708926642681,-500.0,0.00019726,2]
[315199076,1708926642690,-1184.86,0.00019726,2]
[315199078,1708926642699,-669.42,0.00019726,2]
[315199082,1708926642798,-500.0,0.00019726,2]
[315199083,1708926642807,-500.0,0.00019726,2]
[315199084,1708926642816,-500.0,0.00019726,2]
[315199085,1708926642825,-500.0,0.00019726,2]
[315199086,1708926642834,-500.0,0.00019726,2]
[315199087,1708926642843,-500.0,0.00019726,2]
[315199088,1708926642852,-500.0,0.00019726,2]
[315199089,1708926642861,-1516.49,0.00019726,2]
[315199090,1708926642870,-663.51,0.00019726,2]
[315199091,1708926642879,-500.0,0.00019726,2]
[315199092,1708926642888,-447.40547594,0.00019726,2]
[315199093,1708926642897,-619.10188517,0.00019726,2]
[315199094,1708926642906,-590.78,0.00019726,2]
[315199095,1708926642916,-500.0,0.00019726,2]
[315199096,1708926642925,-500.0,0.00019726,2]
[315199097,1708926642934,-500.0,0.00019726,2]
[315199098,1708926642944,-504.21335184,0.00019726,2]
[315199099,1708926642952,-500.0,0.00019726,2]
[315199100,1708926642961,-500.0,0.00019726,2]
[315199101,1708926642970,-500.0,0.00019726,2]
[315199102,1708926642979,-500.0,0.00019726,2]
[315199103,1708926642988,-500.0,0.00019726,2]
[315199104,1708926642997,-1269.53,0.00019726,2]
[315199105,1708926643006,-500.0,0.00019726,2]
[315199106,1708926643014,-500.0,0.00019726,2]
[315199107,1708926643024,-500.0,0.00019726,2]
[315199108,1708926643033,-500.0,0.00019726,2]
[315199109,1708926643041,-500.89874379,0.00019726,2]
[315199110,1708926643051,-500.0,0.00019726,2]
[315199111,1708926643060,-500.0,0.00019726,2]
[315199112,1708926643069,-502.01865313,0.00019726,2]
[315199113,1708926643078,-500.0,0.00019726,2]
[315199114,1708926643087,-2185.58,0.00019726,2]
[315199115,1708926643096,-500.0,0.00019726,2]
[315199116,1708926643105,-500.79176669,0.00019726,2]
[315199117,1708926643114,-500.0,0.00019726,2]
[315199118,1708926643124,-500.0,0.00019726,2]
[315199119,1708926643133,-500.0,0.00019726,2]
[315199120,1708926643142,-500.94944783,0.00019726,2]
[315199121,1708926643151,-201.81516256,0.00019726,2]
[315199122,1708926643161,-500.0,0.00019726,2]
[315199123,1708926643170,-500.0,0.00019726,2]
[315199124,1708926643179,-500.0,0.00019726,2]
[315199125,1708926643188,-1710.11,0.00019726,2]
[315199126,1708926643197,-500.0,0.00019726,2]
[315199127,1708926643206,-500.0,0.00019726,2]
[315199128,1708926643215,-500.0,0.00019726,2]
[315199129,1708926643225,-500.0,0.00019726,2]
[315199130,1708926643234,-728.75,0.00019726,2]
[315199131,1708926643243,-500.0,0.00019726,2]
[315199132,1708926643252,-500.0,0.00019726,2]
[315199133,1708926643261,-646.85521638,0.00019726,2]
[315199134,1708926643271,-1725.08,0.00019726,2]
[315199135,1708926643280,-500.0,0.00019726,2]
[315199136,1708926643289,-500.0,0.00019726,2]
[315199137,1708926643298,-500.0,0.00019726,2]
[315199138,1708926643307,-500.0,0.00019726,2]
[315199139,1708926643316,-500.0,0.00019726,2]
[315199140,1708926643325,-995.34,0.00019726,2]
[315199141,1708926643333,-500.0,0.00019726,2]
[315199142,1708926643343,-504.21322817,0.00019726,2]
[315199143,1708926643351,-500.0,0.00019726,2]
[315199144,1708926643360,-500.0,0.00019726,2]
[315199145,1708926643370,-500.0,0.00019726,2]
[315199146,1708926643379,-500.0,0.00019726,2]
[315199147,1708926643388,-500.0,0.00019726,2]
[315199148,1708926643397,-501.48262876,0.00019726,2]
[315199149,1708926643409,-501.72333826,0.00019726,2]
[315199150,1708926643417,-500.0,0.00019726,2]
[315199151,1708926643426,-500.0,0.00019726,2]
[315199152,1708926643435,-500.0,0.00019726,2]
[315199153,1708926643444,-500.0,0.00019726,2]
[315199154,1708926643453,-390.70436853,0.00019726,2]
[315199155,1708926643462,-238.73773781,0.00019726,2]
[315199156,1708926643471,-642.78312211,0.00019726,2]
[315199157,1708926643481,-371.5006517,0.00019726,2]
[315199158,1708926643490,-10913.61,0.00019726,2]
[315199159,1708926643498,-500.0,0.00019726,2]
[315199160,1708926643507,-2644.67,0.00019726,2]
[315199161,1708926643516,-848.08,0.00019726,2]
[315199162,1708926643525,-742.63,0.00019726,2]
[315199163,1708926643534,-3995.44,0.00019726,2]
[315199164,1708926643543,-503.13338535,0.00019726,2]
[315199165,1708926643553,-500.0,0.00019726,2]
[315199166,1708926643562,-1924.28,0.00019726,2]
[315199167,1708926643571,-500.0,0.00019726,2]
[315199168,1708926643580,-500.0,0.00019726,2]
[315199169,1708926643589,-442.24473459,0.00019726,2]
[315199170,1708926643598,-487.01483259,0.00019726,2]
[315199171,1708926643607,-438.04326599,0.00019726,2]
[315199172,1708926643617,-249.10033961,0.00019726,2]
[315199173,1708926643626,-500.0,0.00019726,2]
[315199174,1708926643635,-504.68,0.00019726,2]
[315199175,1708926643644,-500.0,0.00019726,2]
[315199176,1708926643653,-595.31,0.00019726,2]
[315199177,1708926643663,-500.0,0.00019726,2]
[315199178,1708926643673,-2045.87,0.00019726,2]
[315199179,1708926643682,-2918.65,0.00019726,2]
[315199180,1708926643691,-500.0,0.00019726,2]
[315199181,1708926643700,-500.0,0.00019726,2]
[315199182,1708926643710,-2185.25,0.00019726,2]
[315199183,1708926643719,-500.0,0.00019726,2]
[315199184,1708926643728,-504.12794573,0.00019726,2]
[315199185,1708926643737,-500.0,0.00019726,2]
[315199186,1708926643747,-500.0,0.00019726,2]
[315199187,1708926643756,-500.0,0.00019726,2]
[315199188,1708926643765,-500.0,0.00019726,2]
[315199189,1708926643775,-1000.0,0.00019726,2]
[315199190,1708926643784,-500.0,0.00019726,2]
[315199191,1708926643793,-500.0,0.00019726,2]
[315199192,1708926643802,-503.86862046,0.00019726,2]
[315199193,1708926643812,-500.0,0.00019726,2]
[315199194,1708926643822,-557.78269521,0.00019726,2]
[315199195,1708926643831,-436.52101816,0.00019726,2]
[315199196,1708926643838,-503.26279382,0.00019726,2]
[315199197,1708926643847,-22234.18,0.00019726,2]
[315199198,1708926643857,-500.0,0.00019726,2]
[315199199,1708926643866,-500.0,0.00019726,2]
[315199200,1708926643875,-500.0,0.00019726,2]
[315199201,1708926643885,-238.35007482,0.00019726,2]
[315199202,1708926643894,-507.00886275,0.00019726,2]
[315199203,1708926643903,-1703.49,0.00019726,2]
[315199204,1708926643911,-500.0,0.00019726,2]
[315199205,1708926643921,-500.0,0.00019726,2]
[315199206,1708926643931,-500.0,0.00019726,2]
[315199207,1708926643940,-500.0,0.00019726,2]
[315199208,1708926643949,-7885.35,0.00019726,2]
[315199209,1708926643958,-500.0,0.00019726,2]
[315199210,1708926643967,-2220.13,0.00019726,2]
[315199211,1708926643976,-501.23396073,0.00019726,2]
[315199212,1708926643985,-500.0,0.00019726,2]
[315199213,1708926643994,-500.0,0.00019726,2]
[315199214,1708926644003,-500.0,0.00019726,2]
[315199215,1708926644012,-500.0,0.00019726,2]
[315199216,1708926644022,-209.81817441,0.00019726,2]
[315199217,1708926644031,-637.07,0.00019726,2]
[315199218,1708926644040,-4349.26,0.00019726,2]
[315199219,1708926644049,-500.0,0.00019726,2]
[315199220,1708926644059,-500.0,0.00019726,2]
[315199221,1708926644068,-2947.45,0.00019726,2]
[315199222,1708926644077,-503.09460402,0.00019726,2]
[315199223,1708926644087,-500.0,0.00019726,2]
[315199224,1708926644096,-436.57904397,0.00019726,2]
[315199225,1708926644105,-824.53,0.00019726,2]
[315199226,1708926644115,-500.0,0.00019726,2]
[315199227,1708926644125,-2437.93,0.00019726,2]
[315199228,1708926644134,-502.36151926,0.00019726,2]
[315199230,1708926644143,-500.0,0.00019726,2]
[315199231,1708926644152,-3068.37,0.00019726,2]
[315199232,1708926644162,-278.92397509,0.00019726,2]
[315199233,1708926644171,-21911.07,0.00019726,2]
[315199234,1708926644181,-500.0,0.00019726,2]
[315199235,1708926644190,-500.0,0.00019726,2]
[315199236,1708926644199,-500.0,0.00019726,2]
[315199237,1708926644208,-500.0,0.00019726,2]
[315199238,1708926644218,-378.09595608,0.00019726,2]
[315199240,1708926644227,-500.0,0.00019726,2]
[315199242,1708926644236,-3344.76,0.00019726,2]
[315199244,1708926644245,-1217.01,0.00019726,2]
[315199246,1708926644254,-2173.34,0.00019726,2]
[315199248,1708926644263,-500.0,0.00019726,2]
[315199250,1708926644272,-1477.38,0.00019726,2]
[315199252,1708926644281,-500.0,0.00019788,2]
[315199254,1708926644290,-500.0,0.00019788,2]
[315199256,1708926644299,-88475.46008879,0.00019789,2]
[315199257,1708926644308,-153.0,0.000198,2]
[315199258,1708926644317,-738.56241826,0.00019923,2]
[315199259,1708926644327,-153.0,0.00019945,2]
[315199261,1708926644336,-153.0,0.00019945,2]
[315199262,1708926644345,-153.0,0.00019945,2]
[315199264,1708926644354,-153.0,0.00019945,2]
[315199266,1708926644363,-5337.30879984,0.00019975,2]
[315199268,1708926644372,-500.0,0.00019998,2]
[315199270,1708926644381,-500.0,0.00019999,2]
[315199272,1708926644390,-500.0,0.00019999,2]
[315199273,1708926644399,-153.0,0.0002,2]
[315199274,1708926644409,-500.0,0.0002,2]
[315199276,1708926644420,-1184.86,0.0002,2]
[315199278,1708926644429,-669.42,0.0002,2]
[315199280,1708926644438,-500.0,0.0002,2]
[315199282,1708926644447,-221.26217802,0.0002,2]
[315199283,1708926644457,-500.0,0.0002,2]
[315199285,1708926644466,-500.0,0.0002,2]
[315199287,1708926644475,-500.0,0.0002,2]
[315199288,1708926644484,-500.0,0.0002,2]
[315199289,1708926644495,-502.65712732,0.0002,2]
[315199290,1708926644504,-1516.49,0.0002,2]
[315199291,1708926644513,-151.4394318,0.0002,2]
[315199292,1708926644523,-663.51,0.0002,2]
[315199293,1708926644532,-500.0,0.0002,2]
[315199294,1708926644541,-590.78,0.0002,2]
[315199295,1708926644549,-500.0,0.0002,2]
[315199296,1708926644558,-500.0,0.0002,2]
[315199297,1708926644567,-500.0,0.0002,2]
[315199298,1708926644576,-500.0,0.0002,2]
[315199299,1708926644585,-500.0,0.0002,2]
[315199300,1708926644594,-346.48014905,0.0002,2]
[315199301,1708926644603,-259.03475328,0.0002,2]
[315199302,1708926644612,-1269.53,0.0002,2]
[315199303,1708926644621,-500.0,0.0002,2]
[315199304,1708926644630,-500.0,0.0002,2]
[315199305,1708926644638,-489.08379982,0.0002,2]
[315199306,1708926644647,-500.0,0.0002,2]
[315199307,1708926644656,-503.8969164,0.0002,2]
[315199308,1708926644666,-500.0,0.0002,2]
[315199309,1708926644675,-2185.58,0.0002,2]
[315199310,1708926644683,-500.0,0.0002,2]
[315199311,1708926644693,-501.70449876,0.0002,2]
[315199312,1708926644701,-539.47583065,0.0002,2]
[315199313,1708926644710,-500.0,0.0002,2]
[315199314,1708926644719,-500.0,0.0002,2]
[315199315,1708926644728,-185.27418586,0.0002,2]
[315199316,1708926644737,-500.0,0.0002,2]
[315199317,1708926644746,-500.0,0.0002,2]
[315199318,1708926644755,-1710.11,0.0002,2]
[315199319,1708926644764,-500.0,0.0002,2]
[315199320,1708926644773,-505.95058571,0.0002,2]
[315199321,1708926644782,-728.75,0.0002,2]
[315199322,1708926644791,-500.0,0.0002,2]
[315199323,1708926644799,-500.0,0.0002,2]
[315199324,1708926644808,-1725.08,0.0002,2]
[315199325,1708926644817,-501.29954357,0.0002,2]
[315199326,1708926644826,-500.0,0.0002,2]
[315199327,1708926644909,-247.65325863,0.0002,2]
[315199328,1708926645287,-1592.75,0.00019178,2]
[315199329,1708926645300,-267.02389564,0.00019178,2]
[315199330,1708926645310,-126.49989165,0.00019178,2]
[315199331,1708926645321,-373.50010835,0.00019178,2]
[315199332,1708926645331,-500.0,0.00019178,2]
[315199333,1708926645341,-151.0,0.00019178,2]
[315199334,1708926645350,-499.53437694,0.00019178,2]
[315199335,1708926645360,-1592.75,0.00019452,2]
[315199336,1708926645369,-500.0,0.00019452,2]
[315199337,1708926645378,-151.0,0.00019452,2]
[315199338,1708926645387,-1592.75,0.00019726,2]
[315199339,1708926645396,-500.0,0.00019726,2]
[315199340,1708926645406,-152.40498538,0.00019726,2]
[315199341,1708926645417,-8230.24916882,0.0001989,2]
[315199342,1708926645426,-252.34674137,0.0002,2]
[315199343,1708926645437,-239.92493776,0.0002,2]
[315199344,1708926645446,-500.0,0.0002,2]
[315199345,1708926645454,-995.34,0.0002,2]
[315199346,1708926645464,-500.0,0.0002,2]
[315199347,1708926645473,-500.0,0.0002,2]
[315199348,1708926645482,-500.0,0.0002,2]
[315199349,1708926645491,-500.0,0.0002,2]
[315199350,1708926645500,-500.0,0.0002,2]
[315199351,1708926645509,-500.0,0.0002,2]
[315199352,1708926645518,-500.0,0.0002,2]
[315199353,1708926645527,-500.0,0.0002,2]
[315199354,1708926645536,-500.0,0.0002,2]
[315199355,1708926645545,-500.0,0.0002,2]
[315199356,1708926645555,-10913.61,0.0002,2]
[315199357,1708926645565,-503.09950777,0.0002,2]
[315199358,1708926645574,-2644.67,0.0002,2]
[315199359,1708926645583,-848.08,0.0002,2]
[315199360,1708926645592,-742.63,0.0002,2]
[315199361,1708926645602,-3995.44,0.0002,2]
[315199362,1708926645611,-500.0,0.0002,2]
[315199363,1708926645621,-1924.28,0.0002,2]
[315199364,1708926645630,-500.0,0.0002,2]
[315199365,1708926645639,-500.0,0.0002,2]
[315199366,1708926645648,-500.0,0.0002,2]
[315199367,1708926645657,-504.68,0.0002,2]
[315199368,1708926645668,-244.30017244,0.0002,2]
[315199369,1708926645678,-595.31,0.0002,2]
[315199370,1708926645687,-500.0,0.0002,2]
[315199371,1708926645696,-2045.87,0.0002,2]
[315199372,1708926645705,-2918.65,0.0002,2]
[315199373,1708926645715,-502.22509866,0.0002,2]
[315199374,1708926645724,-500.0,0.0002,2]
[315199375,1708926645733,-2185.25,0.0002,2]
[315199376,1708926645742,-177.39740137,0.0002,2]
[315199377,1708926645752,-175.05326981,0.0002,2]
[315199378,1708926645761,-500.0,0.0002,2]
[315199379,1708926645770,-500.0,0.0002,2]
[315199380,1708926645780,-1000.0,0.0002,2]
[315199381,1708926645790,-500.0,0.0002,2]
[315199382,1708926645799,-500.0,0.0002,2]
[315199383,1708926645809,-500.0,0.0002,2]
[315199384,1708926645818,-22234.18,0.0002,2]
[315199385,1708926645828,-507.2110053,0.0002,2]
[315199386,1708926645837,-500.0,0.0002,2]
[315199387,1708926645847,-440.14556433,0.0002,2]
[315199388,1708926645856,-1703.49,0.0002,2]
[315199389,1708926645866,-153.98960683,0.0002,2]
[315199390,1708926645875,-500.0,0.0002,2]
[315199391,1708926645884,-500.0,0.0002,2]
[315199392,1708926645894,-7885.35,0.0002,2]
[315199393,1708926645903,-500.0,0.0002,2]
[315199394,1708926645914,-2220.13,0.0002,2]
[315199395,1708926645923,-500.0,0.0002,2]
[315199396,1708926645932,-505.12852291,0.0002,2]
[315199397,1708926645941,-500.0,0.0002,2]
[315199398,1708926645951,-500.0,0.0002,2]
[315199399,1708926645960,-637.07,0.0002,2]
[315199400,1708926645970,-4349.26,0.0002,2]
[315199401,1708926645979,-507.80796114,0.0002,2]
[315199402,1708926645988,-502.28118621,0.0002,2]
[315199403,1708926645998,-2947.45,0.0002,2]
[315199404,1708926646007,-338.91589306,0.0002,2]
[315199405,1708926646017,-824.53,0.0002,2]
[315199406,1708926646026,-500.0,0.0002,2]
[315199407,1708926646035,-2437.93,0.0002,2]
[315199408,1708926646044,-610.448442,0.0002,2]
[315199409,1708926646053,-3068.37,0.0002,2]
[315199410,1708926646062,-21911.07,0.0002,2]
[315199411,1708926646073,-477.02525582,0.0002,2]
[315199413,1708926646082,-500.0,0.0002,2]
[315199415,1708926646091,-500.0,0.0002,2]
[315199416,1708926646100,-500.0,0.0002,2]
[315199418,1708926646109,-3344.76,0.0002,2]
[315199420,1708926646118,-1217.01,0.0002,2]
[315199421,1708926646128,-2173.34,0.0002,2]
[315199422,1708926646137,-500.0,0.0002,2]
[315199424,1708926646146,-1477.38,0.0002,2]
[315199426,1708926646154,-1592.75,0.0002,2]
[315199427,1708926646164,-500.0,0.0002,2]
[315199428,1708926646173,-166.666666,0.00020076,2]
[315199429,1708926646183,-175.5,0.000201,2]
[315199430,1708926646192,-500.0,0.00020168,2]
[315199431,1708926646201,-1000.0,0.00020169,2]
[315199432,1708926646210,-2618.02932346,0.00020169,2]
[315199433,1708926646219,-3714.97743896,0.00020169,2]
[315199434,1708926646228,-2465.14596052,0.00020169,2]
[315199435,1708926646237,-1000.0,0.00020169,2]
[315199436,1708926646245,-9951.35847779,0.00020169,2]
[315199437,1708926646254,-1000.0,0.00020169,2]
[315199438,1708926646263,-428.45143734,0.00020169,2]
[315199439,1708926646272,-1000.0,0.00020169,2]
[315199440,1708926646281,-1000.0,0.00020169,2]
[315199441,1708926646290,-507.22485328,0.00020169,2]
[315199442,1708926646299,-152.16745599,0.00020169,2]
[315199443,1708926646307,-1000.0,0.00020169,2]
[315199444,1708926646316,-346.17764628,0.0002017,2]
[315199445,1708926646325,-500.0,0.00020174,2]
[315199446,1708926646333,-500.0,0.00020174,2]
[315199447,1708926646342,-500.0,0.00020174,2]
[315199448,1708926646350,-319.09963093,0.00020174,2]
[315199449,1708926646359,-377.60815985,0.00020174,2]
[315199450,1708926646368,-500.0,0.00020174,2]
[315199451,1708926646377,-500.0,0.00020174,2]
[315199452,1708926646386,-500.0,0.00020174,2]
[315199453,1708926646395,-500.0,0.00020174,2]
[315199454,1708926646403,-500.0,0.00020174,2]
[315199455,1708926646414,-500.0,0.00020174,2]
[315199456,1708926646426,-390.5,0.00020174,2]
[315199457,1708926646435,-79209.51932522,0.00020175,2]
[315199458,1708926646444,-27837.4199954,0.00020175,2]
[315199459,1708926646510,-153.0,0.000201,2]
[315199460,1708926646520,-22162.5800046,0.00020175,2]
[315199461,1708926646530,-1459.774645,0.00020175,2]
[315199508,1708927009258,1572.1068492,0.00021888,28]
[315199585,1708927755094,-653.04920302,0.00017999,2]
[315199586,1708927755116,-1570.88677281,0.00018,2]
[315199624,1708927832483,-1045.11322719,0.00018,2]
[315199625,1708927832493,-150.0,0.000189,2]
[315199626,1708927832504,-178.361786,0.00019078,2]
[315199627,1708927832513,-304.78,0.00019168,3]
[315199628,1708927832522,-155.30543099,0.00019176,2]
[315199629,1708927832532,-653.04920302,0.00019176,2]
[315199630,1708927832541,-227.75953718,0.00019177,2]
[315199632,1708927832550,-500.0,0.00019178,2]
[315199633,1708927832559,-174.04153405,0.00019178,2]
[315199645,1708927838427,-325.95846595,0.00019178,2]
[315199646,1708927838439,-500.0,0.00019178,2]
[315199647,1708927838449,-500.0,0.00019178,2]
[315199648,1708927838462,-500.0,0.00019178,2]
[315199649,1708927838472,-501.87588497,0.00019178,2]
[315199650,1708927838483,-500.0,0.00019178,2]
[315199651,1708927838494,-500.0,0.00019178,2]
[315199652,1708927838504,-501.09881645,0.00019178,2]
[315199653,1708927838515,-501.27258164,0.00019178,2]
[315199654,1708927838525,-500.5519328,0.00019178,2]
[315199655,1708927838536,-501.62032303,0.00019178,2]
[315199656,1708927838547,-500.0,0.00019178,2]
[315199657,1708927838557,-500.0,0.00019178,2]
[315199658,1708927838568,-500.0,0.00019178,2]
[315199659,1708927838579,-500.87900655,0.00019178,2]
[315199660,1708927838589,-500.0,0.00019178,2]
[315199661,1708927838599,-500.0,0.00019178,2]
[315199662,1708927838610,-500.0,0.00019178,2]
[315199663,1708927838620,-500.0,0.00019178,2]
[315199664,1708927838630,-348.50532921,0.00019178,2]
[315199665,1708927838642,-500.99987678,0.00019178,2]
[315199666,1708927838652,-500.0,0.00019178,2]
[315199667,1708927838661,-625.71403396,0.00019178,2]
[315199668,1708927838673,-500.0,0.00019178,2]
[315199669,1708927838683,-500.0,0.00019178,2]
[315199670,1708927838693,-500.0,0.00019178,2]
[315199671,1708927838704,-500.0,0.00019178,2]
[315199672,1708927838714,-500.0,0.00019178,2]
[315199673,1708927838724,-500.0,0.00019178,2]
[315199674,1708927838734,-500.0,0.00019178,2]
[315199675,1708927838745,-501.11630896,0.00019178,2]
[315199676,1708927838755,-500.0,0.00019178,2]
[315199677,1708927838765,-500.80947472,0.00019178,2]
[315199678,1708927838776,-500.0,0.00019178,2]
[315199679,1708927838799,-500.0,0.00019178,2]
[315199680,1708927838816,-500.0,0.00019178,2]
[315199681,1708927838830,-1295.14,0.00019178,2]
[315199682,1708927838844,-500.0,0.00019178,2]
[315199683,1708927838858,-500.0,0.00019178,2]
[315199684,1708927838871,-500.0,0.00019178,2]
[315199685,1708927838884,-500.0,0.00019178,2]
[315199686,1708927838897,-559.15393256,0.00019178,2]
[315199687,1708927838910,-500.0,0.00019178,2]
[315199688,1708927838923,-500.0,0.00019178,2]
[315199689,1708927838935,-500.0,0.00019178,2]
[315199690,1708927838948,-500.24182891,0.00019178,2]
[315199691,1708927838961,-483.72738854,0.00019178,2]
[315199692,1708927838973,-500.0,0.00019178,2]
[315199693,1708927838985,-513.93926207,0.00019178,2]
[315199694,1708927838997,-500.0,0.00019178,2]
[315199695,1708927839009,-500.0,0.00019178,2]
[315199696,1708927839021,-500.0,0.00019178,2]
[315199697,1708927839032,-500.0,0.00019178,2]
[315199698,1708927839043,-500.0,0.00019178,2]
[315199699,1708927839054,-500.0,0.00019178,2]
[315199700,1708927839066,-500.0,0.00019178,2]
[315199701,1708927839080,-571.9240967,0.00019178,2]
[315199702,1708927839091,-500.0,0.00019178,2]
[315199703,1708927839101,-500.0,0.00019178,2]
[315199704,1708927839111,-500.0,0.00019178,2]
[315199705,1708927839121,-500.0,0.00019178,2]
[315199706,1708927839131,-501.16512852,0.00019178,2]
[315199707,1708927839140,-500.0,0.00019178,2]
[315199708,1708927839150,-500.0,0.00019178,2]
[315199709,1708927839159,-500.0,0.00019178,2]
[315199710,1708927839169,-500.0,0.00019178,2]
[315199711,1708927839179,-500.0,0.00019178,2]
[315199712,1708927839338,-500.0,0.00019178,2]
[315199713,1708927839353,-500.71993802,0.00019178,2]
[315199714,1708927839362,-220.42165296,0.00019178,2]
[315199715,1708927839371,-500.0,0.00019178,2]
[315199716,1708927839380,-500.0,0.00019178,2]
[315199717,1708927839389,-1674.04,0.00019178,2]
[315199718,1708927839398,-500.0,0.00019178,2]